[Event "Live Chess"]
[Site "Chess.com"]
[Date "2023.05.21"]
[Round "-"]
[White "educatedlad"]
[Black "LiamBellwood"]
[Result "0-1"]
[WhiteElo "1635"]
[BlackElo "2058"]
[TimeControl "300"]
[EndTime "17:18:58 PDT"]
[Termination "LiamBellwood won by checkmate"]

1. e4 {[%clk 0:04:59.1]} 1... e6 {[%clk 0:04:59.9]} 2. d4 {[%clk 0:04:57.5]}
2... d5 {[%clk 0:04:59.5]} 3. e5 {[%clk 0:04:56.2]} 3... c5 {[%clk 0:04:59]} 4.
c3 {[%clk 0:04:54]} 4... Nc6 {[%clk 0:04:58.9]} 5. Nf3 {[%clk 0:04:53.2]} 5...
Bd7 {[%clk 0:04:58.6]} 6. Be2 {[%clk 0:04:51.3]} 6... Nge7 {[%clk 0:04:57.8]} 7.
O-O {[%clk 0:04:50.5]} 7... Nf5 {[%clk 0:04:50.9]} 8. g4 {[%clk 0:04:47.8]} 8...
Nh4 {[%clk 0:04:49.8]} 9. g5 {[%clk 0:04:45.3]} 9... Nxf3+ {[%clk 0:04:48.8]}
10. Bxf3 {[%clk 0:04:44]} 10... Be7 {[%clk 0:04:48.7]} 11. h4 {[%clk 0:04:42.2]}
11... h6 {[%clk 0:04:47.6]} 12. dxc5 {[%clk 0:04:36]} 12... hxg5 {[%clk
0:04:45.7]} 13. Bxg5 {[%clk 0:04:33.2]} 13... Bxg5 {[%clk 0:04:44.9]} 14. hxg5
{[%clk 0:04:33.1]} 14... Qxg5+ {[%clk 0:04:44.4]} 15. Bg2 {[%clk 0:04:32.2]}
15... Nxe5 {[%clk 0:04:39.1]} 16. Nd2 {[%clk 0:04:28.5]} 16... Qh4 {[%clk
0:04:32.9]} 17. f3 {[%clk 0:04:20.2]} 17... Nd3 {[%clk 0:04:27.7]} 18. Re1
{[%clk 0:04:11.7]} 18... Qf2# {[%clk 0:04:26.5]} 0-1

[Event "Live Chess"]
[Site "Chess.com"]
[Date "2023.05.21"]
[Round "-"]
[White "luckywookie"]
[Black "GEMdzq"]
[Result "0-1"]
[WhiteElo "766"]
[BlackElo "2257"]
[TimeControl "300"]
[EndTime "17:19:20 PDT"]
[Termination "GEMdzq won on time"]

1. e4 {[%clk 0:04:50.9]} 1... d6 {[%clk 0:04:58.4]} 2. c3 {[%clk 0:04:48.8]}
2... Nf6 {[%clk 0:04:58]} 3. d3 {[%clk 0:04:45.9]} 3... c5 {[%clk 0:04:56.2]} 4.
Nf3 {[%clk 0:04:42.6]} 4... Nc6 {[%clk 0:04:55.3]} 5. Be3 {[%clk 0:04:38.1]}
5... g6 {[%clk 0:04:52]} 6. Be2 {[%clk 0:04:36.1]} 6... Bg7 {[%clk 0:04:51.1]}
7. O-O {[%clk 0:04:34]} 7... O-O {[%clk 0:04:49.9]} 8. h3 {[%clk 0:04:33.2]}
8... Bd7 {[%clk 0:04:44.9]} 9. Nbd2 {[%clk 0:04:27.4]} 9... Rc8 {[%clk
0:04:43.1]} 10. Qb3 {[%clk 0:04:19.6]} 10... Qc7 {[%clk 0:04:38.8]} 11. Rac1
{[%clk 0:04:13.9]} 11... a6 {[%clk 0:04:31.9]} 12. d4 {[%clk 0:04:02.3]} 12...
Na5 {[%clk 0:04:17]} 13. Qc2 {[%clk 0:03:51.8]} 13... cxd4 {[%clk 0:04:12.7]}
14. Bxd4 {[%clk 0:03:49.2]} 14... Nc6 {[%clk 0:04:08.2]} 15. e5 {[%clk
0:03:37.9]} 15... dxe5 {[%clk 0:04:05.6]} 16. Be3 {[%clk 0:03:24.6]} 16... Nd5
{[%clk 0:04:04.4]} 17. Ng5 {[%clk 0:03:13.1]} 17... h6 {[%clk 0:03:54.1]} 18.
Nxf7 {[%clk 0:03:01.4]} 18... Rxf7 {[%clk 0:03:52.3]} 19. Qxg6 {[%clk
0:02:59.3]} 19... Nxe3 {[%clk 0:03:47.1]} 20. fxe3 {[%clk 0:02:57.1]} 20... Rcf8
{[%clk 0:03:28.2]} 21. Bc4 {[%clk 0:02:50.5]} 21... e6 {[%clk 0:03:27.3]} 22.
Rxf7 {[%clk 0:02:36.4]} 22... Rxf7 {[%clk 0:03:26]} 23. Bxe6 {[%clk 0:02:31.4]}
23... Bxe6 {[%clk 0:03:24.6]} 24. Qxe6 {[%clk 0:02:28.5]} 24... Qd7 {[%clk
0:03:21.3]} 25. Qxd7 {[%clk 0:02:08]} 25... Rxd7 {[%clk 0:03:21.2]} 26. Ne4
{[%clk 0:02:05.6]} 26... Ne7 {[%clk 0:03:06.8]} 27. Nc5 {[%clk 0:02:03.6]} 27...
Rd2 {[%clk 0:03:00.9]} 28. Nxb7 {[%clk 0:01:49.2]} 28... Rxb2 {[%clk 0:02:58.7]}
29. Nd6 {[%clk 0:01:38.3]} 29... Rxa2 {[%clk 0:02:50.9]} 30. c4 {[%clk
0:01:37.5]} 30... Nc6 {[%clk 0:02:47.9]} 31. c5 {[%clk 0:01:36.4]} 31... Re2
{[%clk 0:02:40.4]} 32. e4 {[%clk 0:01:34.4]} 32... Bf8 {[%clk 0:02:39.3]} 33.
Rd1 {[%clk 0:01:27.1]} 33... Nd4 {[%clk 0:02:34.6]} 34. Kf1 {[%clk 0:01:16.1]}
34... Rc2 {[%clk 0:02:33.6]} 35. g4 {[%clk 0:00:51.3]} 35... Rxc5 {[%clk
0:02:30.9]} 36. Nf5 {[%clk 0:00:41.8]} 36... Nxf5 {[%clk 0:02:25.7]} 37. exf5
{[%clk 0:00:28.9]} 37... Rc3 {[%clk 0:02:24.2]} 38. Kg2 {[%clk 0:00:26.5]} 38...
e4 {[%clk 0:02:16.5]} 39. Ra1 {[%clk 0:00:24.5]} 39... Ra3 {[%clk 0:02:13.3]}
40. Rxa3 {[%clk 0:00:19.4]} 40... Bxa3 {[%clk 0:02:10.6]} 41. Kf2 {[%clk
0:00:17.8]} 41... Bc1 {[%clk 0:02:09.1]} 42. Ke2 {[%clk 0:00:15.4]} 42... a5
{[%clk 0:02:07.6]} 43. h4 {[%clk 0:00:09.2]} 43... a4 {[%clk 0:02:06.5]} 44. h5
{[%clk 0:00:08.5]} 44... a3 {[%clk 0:02:05.4]} 45. g5 {[%clk 0:00:06.2]} 45...
Bxg5 {[%clk 0:02:03.5]} 46. f6 {[%clk 0:00:01.4]} 46... a2 {[%clk 0:02:03.4]}
0-1

[Event "Live Chess"]
[Site "Chess.com"]
[Date "2023.05.21"]
[Round "-"]
[White "Jo1ts"]
[Black "Cimon"]
[Result "0-1"]
[WhiteElo "801"]
[BlackElo "1861"]
[TimeControl "300"]
[EndTime "17:19:29 PDT"]
[Termination "Cimon won by checkmate"]

1. d4 {[%clk 0:04:57.4]} 1... Nf6 {[%clk 0:04:58.7]} 2. Bg5 {[%clk 0:04:50]}
2... d5 {[%clk 0:04:56.4]} 3. Bxf6 {[%clk 0:04:48.3]} 3... exf6 {[%clk 0:04:55]}
4. Nf3 {[%clk 0:04:47.3]} 4... c5 {[%clk 0:04:53]} 5. c3 {[%clk 0:04:45.1]} 5...
Nc6 {[%clk 0:04:50.9]} 6. e3 {[%clk 0:04:43.2]} 6... Bg4 {[%clk 0:04:48.2]} 7.
Be2 {[%clk 0:04:37.3]} 7... Be7 {[%clk 0:04:46]} 8. h3 {[%clk 0:04:36.3]} 8...
Bh5 {[%clk 0:04:44.1]} 9. g4 {[%clk 0:04:35]} 9... Bg6 {[%clk 0:04:42.8]} 10.
Nbd2 {[%clk 0:04:27.9]} 10... O-O {[%clk 0:04:37.5]} 11. Qb3 {[%clk 0:04:20.8]}
11... Qd7 {[%clk 0:04:32.6]} 12. Rg1 {[%clk 0:04:01.1]} 12... c4 {[%clk
0:04:27.2]} 13. Qa4 {[%clk 0:03:47.7]} 13... Rfb8 {[%clk 0:04:20.8]} 14. h4
{[%clk 0:03:37.9]} 14... b5 {[%clk 0:04:16.7]} 15. Qd1 {[%clk 0:03:28.2]} 15...
b4 {[%clk 0:04:12.9]} 16. h5 {[%clk 0:03:03.3]} 16... Be4 {[%clk 0:04:06]} 17.
Nxe4 {[%clk 0:02:56.1]} 17... dxe4 {[%clk 0:04:03.6]} 18. Nh4 {[%clk 0:02:54.2]}
18... bxc3 {[%clk 0:03:48.1]} 19. bxc3 {[%clk 0:02:51.2]} 19... Na5 {[%clk
0:03:36.1]} 20. Qc2 {[%clk 0:02:43.2]} 20... Qc6 {[%clk 0:03:26.7]} 21. Nf5
{[%clk 0:02:35.6]} 21... Ba3 {[%clk 0:03:21.8]} 22. h6 {[%clk 0:02:08.8]} 22...
g6 {[%clk 0:03:12.4]} 23. Nh4 {[%clk 0:02:00.6]} 23... Rb2 {[%clk 0:03:07.2]}
24. Qc1 {[%clk 0:01:48.6]} 24... Rab8 {[%clk 0:02:35.7]} 25. g5 {[%clk
0:01:20.4]} 25... Rxe2+ {[%clk 0:02:29]} 26. Kxe2 {[%clk 0:01:16.6]} 26... Bxc1
{[%clk 0:02:27.3]} 27. Raxc1 {[%clk 0:01:15.9]} 27... Rb2+ {[%clk 0:02:24.8]}
28. Kf1 {[%clk 0:01:12.9]} 28... fxg5 {[%clk 0:02:20.3]} 29. Rxg5 {[%clk
0:01:10.5]} 29... Kf8 {[%clk 0:02:17.7]} 30. Rxa5 {[%clk 0:01:07.9]} 30... Qf6
{[%clk 0:02:14.5]} 31. Rf5 {[%clk 0:00:33.8]} 31... gxf5 {[%clk 0:02:10.6]} 32.
Ng2 {[%clk 0:00:28.8]} 32... Qxh6 {[%clk 0:02:05]} 33. a4 {[%clk 0:00:24]} 33...
Qh1# {[%clk 0:02:02.3]} 0-1

[Event "Live Chess"]
[Site "Chess.com"]
[Date "2023.05.21"]
[Round "-"]
[White "EdenHazard8"]
[Black "mikkyb4"]
[Result "1-0"]
[WhiteElo "1990"]
[BlackElo "1034"]
[TimeControl "300"]
[EndTime "17:19:36 PDT"]
[Termination "EdenHazard8 won by resignation"]

1. e4 {[%clk 0:04:58.6]} 1... g6 {[%clk 0:04:59.6]} 2. Bc4 {[%clk 0:04:56.8]}
2... Bg7 {[%clk 0:04:59.3]} 3. Qf3 {[%clk 0:04:55.8]} 3... e6 {[%clk 0:04:58.3]}
4. d3 {[%clk 0:04:54.9]} 4... a6 {[%clk 0:04:56.5]} 5. Nc3 {[%clk 0:04:54.1]}
5... b5 {[%clk 0:04:55.7]} 6. Bb3 {[%clk 0:04:53]} 6... Bb7 {[%clk 0:04:51]} 7.
Nge2 {[%clk 0:04:50.4]} 7... d6 {[%clk 0:04:48.3]} 8. O-O {[%clk 0:04:48.7]}
8... Nd7 {[%clk 0:04:45.7]} 9. Qg3 {[%clk 0:04:46.9]} 9... Be5 {[%clk
0:04:37.1]} 10. f4 {[%clk 0:04:45.3]} 10... Bg7 {[%clk 0:04:31.9]} 11. f5 {[%clk
0:04:44.3]} 11... exf5 {[%clk 0:04:30.5]} 12. exf5 {[%clk 0:04:42.9]} 12... Ngf6
{[%clk 0:04:17.1]} 13. fxg6 {[%clk 0:04:40.5]} 13... fxg6 {[%clk 0:04:16.3]} 14.
Bg5 {[%clk 0:04:37.3]} 14... Rf8 {[%clk 0:04:03.2]} 15. Nf4 {[%clk 0:04:36]}
15... c5 {[%clk 0:03:44.5]} 16. Ne6 {[%clk 0:04:34.6]} 16... Qb6 {[%clk
0:03:41.4]} 17. Nxg7+ {[%clk 0:04:31.6]} 17... Kd8 {[%clk 0:03:38.5]} 18. Ne6+
{[%clk 0:04:30.3]} 18... Kc8 {[%clk 0:03:37.1]} 19. Nxf8 {[%clk 0:04:29.2]}
19... c4+ {[%clk 0:03:36.4]} 20. Kh1 {[%clk 0:04:27.8]} 20... cxb3 {[%clk
0:03:36.1]} 21. axb3 {[%clk 0:04:26.9]} 21... Nxf8 {[%clk 0:03:34]} 22. Rxf6
{[%clk 0:04:25.7]} 1-0

[Event "Live Chess"]
[Site "Chess.com"]
[Date "2023.05.21"]
[Round "-"]
[White "manthanit"]
[Black "GMHarry-youtube"]
[Result "0-1"]
[WhiteElo "1044"]
[BlackElo "2035"]
[TimeControl "300"]
[EndTime "17:19:37 PDT"]
[Termination "GMHarry-youtube won by resignation"]

1. e4 {[%clk 0:04:47.4]} 1... c5 {[%clk 0:04:58.4]} 2. g3 {[%clk 0:04:45.1]}
2... d6 {[%clk 0:04:57.7]} 3. Bg2 {[%clk 0:04:44.6]} 3... Nc6 {[%clk 0:04:56.9]}
4. Ne2 {[%clk 0:04:42.7]} 4... g6 {[%clk 0:04:56.5]} 5. d4 {[%clk 0:04:35.1]}
5... cxd4 {[%clk 0:04:53.7]} 6. Nxd4 {[%clk 0:04:33.9]} 6... Bg7 {[%clk
0:04:52.2]} 7. Nxc6 {[%clk 0:04:31.3]} 7... bxc6 {[%clk 0:04:52.1]} 8. Nc3
{[%clk 0:04:29.8]} 8... Nf6 {[%clk 0:04:50.8]} 9. Be3 {[%clk 0:04:19.6]} 9...
O-O {[%clk 0:04:48.8]} 10. Qd2 {[%clk 0:04:18.3]} 10... c5 {[%clk 0:04:46.6]}
11. O-O {[%clk 0:04:16]} 11... Rb8 {[%clk 0:04:44.7]} 12. Rab1 {[%clk
0:04:08.4]} 12... Ng4 {[%clk 0:04:43.2]} 13. Bf3 {[%clk 0:03:54.1]} 13... Nxe3
{[%clk 0:04:41.7]} 14. Qxe3 {[%clk 0:03:52.6]} 14... Qa5 {[%clk 0:04:39.9]} 15.
Nd5 {[%clk 0:03:36.8]} 15... e6 {[%clk 0:04:30]} 16. Ne7+ {[%clk 0:03:27.5]}
16... Kh8 {[%clk 0:04:28.5]} 17. Nc6 {[%clk 0:03:27]} 17... Qb5 {[%clk
0:04:12.2]} 18. Nxb8 {[%clk 0:03:21.3]} 18... Qxb8 {[%clk 0:04:12.1]} 19. c3
{[%clk 0:03:19]} 19... Ba6 {[%clk 0:04:10.9]} 20. Be2 {[%clk 0:03:13.1]} 20...
Bb7 {[%clk 0:04:07]} 21. Bf3 {[%clk 0:03:10.8]} 21... a5 {[%clk 0:04:02.6]} 22.
Rfd1 {[%clk 0:03:00.3]} 22... Rd8 {[%clk 0:03:54.2]} 23. Rd2 {[%clk 0:02:59]}
23... h5 {[%clk 0:03:46.4]} 24. Rbd1 {[%clk 0:02:56.6]} 24... Kh7 {[%clk
0:03:45]} 25. Rc2 {[%clk 0:02:34.4]} 25... Qa7 {[%clk 0:03:38.6]} 26. b3 {[%clk
0:02:26.9]} 26... Qb6 {[%clk 0:03:34.1]} 27. c4 {[%clk 0:02:23]} 27... Bd4
{[%clk 0:03:31.5]} 28. Qe2 {[%clk 0:02:21.1]} 28... e5 {[%clk 0:03:30.5]} 29. h3
{[%clk 0:02:08.6]} 29... Bc8 {[%clk 0:03:23.4]} 30. Bxh5 {[%clk 0:01:51.3]}
30... gxh5 {[%clk 0:03:20.3]} 31. Qxh5+ {[%clk 0:01:50.8]} 31... Kg7 {[%clk
0:03:19.6]} 32. Rd3 {[%clk 0:01:39.9]} 32... d5 {[%clk 0:03:03.6]} 33. exd5
{[%clk 0:01:33.7]} 33... Qg6 {[%clk 0:03:02.4]} 34. Qxg6+ {[%clk 0:01:10.6]}
34... Kxg6 {[%clk 0:02:55.7]} 35. Kg2 {[%clk 0:01:09.9]} 35... Bf5 {[%clk
0:02:54.4]} 36. Rcd2 {[%clk 0:00:57.3]} 36... e4 {[%clk 0:02:53.3]} 37. Rxd4
{[%clk 0:00:50.4]} 37... cxd4 {[%clk 0:02:51.8]} 38. Rxd4 {[%clk 0:00:49.9]}
38... Kf6 {[%clk 0:02:49.5]} 39. f3 {[%clk 0:00:46.7]} 39... Ke5 {[%clk
0:02:47.6]} 40. Rd2 {[%clk 0:00:44.6]} 40... e3 {[%clk 0:02:47.1]} 41. Re2
{[%clk 0:00:41.6]} 41... Kd4 {[%clk 0:02:46.2]} 42. a3 {[%clk 0:00:36.3]} 42...
Kd3 {[%clk 0:02:45.2]} 43. Re1 {[%clk 0:00:34.1]} 43... Kd2 {[%clk 0:02:44.6]}
44. Kf1 {[%clk 0:00:32.4]} 44... Bd3+ {[%clk 0:02:41.2]} 0-1

[Event "Live Chess"]
[Site "Chess.com"]
[Date "2023.05.21"]
[Round "-"]
[White "Biranidun"]
[Black "Tushinskiy"]
[Result "1-0"]
[WhiteElo "2638"]
[BlackElo "2168"]
[TimeControl "300"]
[EndTime "17:20:01 PDT"]
[Termination "Biranidun won by resignation"]

1. e4 {[%clk 0:04:59.7]} 1... e5 {[%clk 0:04:58.7]} 2. Nf3 {[%clk 0:04:58.7]}
2... d6 {[%clk 0:04:57.9]} 3. d4 {[%clk 0:04:57.8]} 3... Bg4 {[%clk 0:04:56.5]}
4. dxe5 {[%clk 0:04:56.7]} 4... Nd7 {[%clk 0:04:55.2]} 5. exd6 {[%clk
0:04:55.2]} 5... Bxd6 {[%clk 0:04:55.1]} 6. Bd3 {[%clk 0:04:53.1]} 6... Qe7
{[%clk 0:04:54]} 7. Nbd2 {[%clk 0:04:52.4]} 7... Ngf6 {[%clk 0:04:53.3]} 8. O-O
{[%clk 0:04:51.6]} 8... O-O-O {[%clk 0:04:52.7]} 9. h3 {[%clk 0:04:46.3]} 9...
h5 {[%clk 0:04:51.4]} 10. Be2 {[%clk 0:04:45.3]} 10... Kb8 {[%clk 0:04:48.6]}
11. c3 {[%clk 0:04:41.8]} 11... Nxe4 {[%clk 0:04:44.2]} 12. Nxe4 {[%clk
0:04:40.2]} 12... Qxe4 {[%clk 0:04:44.1]} 13. Re1 {[%clk 0:04:34.8]} 13... Nf6
{[%clk 0:04:40.1]} 14. Kf1 {[%clk 0:04:20.4]} 14... Bc5 {[%clk 0:04:24.1]} 15.
Qb3 {[%clk 0:04:13.3]} 15... Qf5 {[%clk 0:04:11.3]} 16. Qc4 {[%clk 0:03:54.3]}
16... Bxh3 {[%clk 0:04:06.1]} 17. gxh3 {[%clk 0:03:53.2]} 17... Qxh3+ {[%clk
0:04:04.6]} 18. Kg1 {[%clk 0:03:52.7]} 18... Qg3+ {[%clk 0:03:59.4]} 19. Kh1
{[%clk 0:03:52.1]} 19... Bxf2 {[%clk 0:03:57.5]} 20. Bf4 {[%clk 0:03:45.5]}
20... Qh3+ {[%clk 0:03:51.7]} 21. Nh2 {[%clk 0:03:44.5]} 21... Bxe1 {[%clk
0:03:46]} 22. Qxc7+ {[%clk 0:03:37.1]} 22... Ka8 {[%clk 0:03:44.3]} 23. Bf3
{[%clk 0:03:24.9]} 23... Nd5 {[%clk 0:03:35.9]} 24. Bxd5 {[%clk 0:03:21.2]}
24... Rxd5 {[%clk 0:03:35.8]} 25. Rxe1 {[%clk 0:03:19.9]} 25... g5 {[%clk
0:03:22.4]} 26. Qxf7 {[%clk 0:03:17.7]} 26... Rhd8 {[%clk 0:03:13.6]} 27. Qxd5
{[%clk 0:03:13.7]} 27... Rc8 {[%clk 0:03:08.7]} 28. Qxg5 {[%clk 0:03:09.1]}
28... a6 {[%clk 0:03:06.2]} 29. Qg2 {[%clk 0:03:08.2]} 29... Qf5 {[%clk
0:03:04.1]} 30. Qe4 {[%clk 0:02:43.4]} 30... Qb5 {[%clk 0:02:57.5]} 31. b3
{[%clk 0:02:20.2]} 31... Qa5 {[%clk 0:02:51.9]} 32. Qg2 {[%clk 0:01:38.1]} 32...
Qf5 {[%clk 0:02:40]} 33. Re7 {[%clk 0:01:29.1]} 33... Qb5 {[%clk 0:02:37.5]} 34.
c4 {[%clk 0:01:26.3]} 34... Qb4 {[%clk 0:02:31.5]} 35. Bd6 {[%clk 0:01:25.2]}
35... Qb6 {[%clk 0:02:28]} 36. c5 {[%clk 0:01:23]} 36... Qb5 {[%clk 0:02:26.6]}
37. Nf3 {[%clk 0:01:15.4]} 37... Rf8 {[%clk 0:02:17.4]} 38. Rxb7 {[%clk
0:01:05.2]} 38... Qxb7 {[%clk 0:02:12.4]} 39. Bxf8 {[%clk 0:01:03.7]} 39... Ka7
{[%clk 0:02:07.2]} 40. Qg7 {[%clk 0:00:59]} 1-0

[Event "Live Chess"]
[Site "Chess.com"]
[Date "2023.05.21"]
[Round "-"]
[White "CheckThis4"]
[Black "romchyk1219"]
[Result "1-0"]
[WhiteElo "2525"]
[BlackElo "619"]
[TimeControl "300"]
[EndTime "17:21:04 PDT"]
[Termination "CheckThis4 won by checkmate"]

1. d4 {[%clk 0:04:58.6]} 1... Nf6 {[%clk 0:04:57.9]} 2. Nc3 {[%clk 0:04:58.1]}
2... g6 {[%clk 0:04:57]} 3. e4 {[%clk 0:04:57.9]} 3... Bg7 {[%clk 0:04:55.8]} 4.
e5 {[%clk 0:04:57.6]} 4... Ng4 {[%clk 0:04:51.7]} 5. Qxg4 {[%clk 0:04:55.9]}
5... d6 {[%clk 0:04:50.2]} 6. Qf3 {[%clk 0:04:54.8]} 6... O-O {[%clk 0:04:48.4]}
7. Bf4 {[%clk 0:04:50.8]} 7... Nc6 {[%clk 0:04:48.3]} 8. O-O-O {[%clk
0:04:48.6]} 8... dxe5 {[%clk 0:04:47.6]} 9. dxe5 {[%clk 0:04:47.9]} 9... Qe8
{[%clk 0:04:44.4]} 10. Bb5 {[%clk 0:04:46.6]} 10... a6 {[%clk 0:04:39.2]} 11.
Bxc6 {[%clk 0:04:45.2]} 11... Qxc6 {[%clk 0:04:38]} 12. Qxc6 {[%clk 0:04:44.3]}
12... bxc6 {[%clk 0:04:37.8]} 13. Nf3 {[%clk 0:04:42.5]} 13... Rb8 {[%clk
0:04:35.9]} 14. Rhe1 {[%clk 0:04:39.3]} 14... Be6 {[%clk 0:04:35.2]} 15. Nd4
{[%clk 0:04:36.1]} 15... Bd5 {[%clk 0:04:29.8]} 16. Nxd5 {[%clk 0:04:34.4]}
16... cxd5 {[%clk 0:04:28.5]} 17. Nc6 {[%clk 0:04:33.7]} 17... Rb6 {[%clk
0:04:24.9]} 18. Nxe7+ {[%clk 0:04:32.8]} 18... Kh8 {[%clk 0:04:22.1]} 19. Nxd5
{[%clk 0:04:32.7]} 19... Rb5 {[%clk 0:04:17.8]} 20. Nxc7 {[%clk 0:04:31.9]}
20... Ra5 {[%clk 0:04:16.2]} 21. a3 {[%clk 0:04:30.4]} 21... Rc8 {[%clk
0:04:14]} 22. e6 {[%clk 0:04:29.6]} 22... fxe6 {[%clk 0:04:10.7]} 23. Nxe6
{[%clk 0:04:27]} 23... Kg8 {[%clk 0:04:03.6]} 24. Nxg7 {[%clk 0:04:26]} 24...
Kxg7 {[%clk 0:04:02.3]} 25. Rd7+ {[%clk 0:04:25.5]} 25... Kf6 {[%clk 0:04:00.2]}
26. g4 {[%clk 0:04:22.9]} 26... g5 {[%clk 0:03:58.6]} 27. Rd6+ {[%clk 0:04:20]}
27... Kf7 {[%clk 0:03:57.2]} 28. Bd2 {[%clk 0:04:17.9]} 28... Rac5 {[%clk
0:03:54.6]} 29. Bc3 {[%clk 0:04:16.6]} 29... Re8 {[%clk 0:03:50.4]} 30. Rf6+
{[%clk 0:04:15.1]} 30... Kg7 {[%clk 0:03:47.3]} 31. Rxe8 {[%clk 0:04:15]} 31...
Rxc3 {[%clk 0:03:35.8]} 32. bxc3 {[%clk 0:04:11.7]} 32... Kxf6 {[%clk
0:03:34.8]} 33. c4 {[%clk 0:04:10.9]} 33... Kf7 {[%clk 0:03:32.4]} 34. Re1
{[%clk 0:04:10.8]} 34... Kf6 {[%clk 0:03:29.5]} 35. c5 {[%clk 0:04:10.7]} 35...
Kg6 {[%clk 0:03:28.9]} 36. c6 {[%clk 0:04:10]} 36... h5 {[%clk 0:03:27.1]} 37.
c7 {[%clk 0:04:09.9]} 37... hxg4 {[%clk 0:03:26.6]} 38. c8=Q {[%clk 0:04:09.8]}
38... Kh5 {[%clk 0:03:25]} 39. Qh8+ {[%clk 0:04:08.5]} 39... Kg6 {[%clk
0:03:24]} 40. Re6+ {[%clk 0:04:07.7]} 40... Kf5 {[%clk 0:03:23]} 41. Qf6# {[%clk
0:04:07.6]} 1-0

[Event "Live Chess"]
[Site "Chess.com"]
[Date "2023.05.21"]
[Round "-"]
[White "JoshMcK"]
[Black "Missedidea"]
[Result "1-0"]
[WhiteElo "1541"]
[BlackElo "1806"]
[TimeControl "300"]
[EndTime "17:21:07 PDT"]
[Termination "JoshMcK won on time"]

1. e4 {[%clk 0:04:58.7]} 1... c5 {[%clk 0:04:57.7]} 2. c3 {[%clk 0:04:57.6]}
2... Nf6 {[%clk 0:04:55.5]} 3. e5 {[%clk 0:04:56.2]} 3... Nd5 {[%clk 0:04:54.6]}
4. Nf3 {[%clk 0:04:55.7]} 4... d6 {[%clk 0:04:52.5]} 5. exd6 {[%clk 0:04:54.4]}
5... e6 {[%clk 0:04:51]} 6. g3 {[%clk 0:04:52]} 6... Bxd6 {[%clk 0:04:49.1]} 7.
Bg2 {[%clk 0:04:51.2]} 7... O-O {[%clk 0:04:46.8]} 8. O-O {[%clk 0:04:50.8]}
8... Nc6 {[%clk 0:04:43.6]} 9. d4 {[%clk 0:04:50.2]} 9... cxd4 {[%clk
0:04:41.9]} 10. Nxd4 {[%clk 0:04:50.1]} 10... a6 {[%clk 0:04:32.7]} 11. Nd2
{[%clk 0:04:34.5]} 11... Bc5 {[%clk 0:04:19]} 12. N2f3 {[%clk 0:04:33]} 12...
Qb6 {[%clk 0:04:08.4]} 13. Nxc6 {[%clk 0:04:23.2]} 13... bxc6 {[%clk 0:04:05.3]}
14. Ne5 {[%clk 0:04:17.5]} 14... Ra7 {[%clk 0:03:55.6]} 15. a3 {[%clk
0:04:06.3]} 15... f6 {[%clk 0:03:46.4]} 16. Nd3 {[%clk 0:04:03.9]} 16... Bd6
{[%clk 0:03:32.5]} 17. c4 {[%clk 0:03:56.6]} 17... Ne7 {[%clk 0:03:19.4]} 18. b4
{[%clk 0:03:53.6]} 18... Qb8 {[%clk 0:03:12.4]} 19. c5 {[%clk 0:03:51.1]} 19...
Bc7 {[%clk 0:03:09.1]} 20. Bd2 {[%clk 0:03:47.3]} 20... Nd5 {[%clk 0:03:02.9]}
21. Re1 {[%clk 0:03:22.3]} 21... e5 {[%clk 0:02:57.8]} 22. Nb2 {[%clk
0:03:13.4]} 22... Be6 {[%clk 0:02:48.9]} 23. Bc1 {[%clk 0:03:08.1]} 23... Rd8
{[%clk 0:02:42.9]} 24. Qe2 {[%clk 0:03:07]} 24... Bf7 {[%clk 0:02:39.3]} 25. Bd2
{[%clk 0:02:56.9]} 25... a5 {[%clk 0:02:36]} 26. Nc4 {[%clk 0:02:54.1]} 26...
axb4 {[%clk 0:02:31.8]} 27. axb4 {[%clk 0:02:52.9]} 27... Rxa1 {[%clk
0:02:25.2]} 28. Rxa1 {[%clk 0:02:50.8]} 28... Nxb4 {[%clk 0:02:22.7]} 29. Rb1
{[%clk 0:02:46.5]} 29... Rd4 {[%clk 0:01:57.1]} 30. Rxb4 {[%clk 0:02:37.1]}
30... Qd8 {[%clk 0:01:52.9]} 31. Bxc6 {[%clk 0:02:30]} 31... Bxc4 {[%clk
0:01:47.9]} 32. Rxc4 {[%clk 0:02:25.4]} 32... Rxd2 {[%clk 0:01:45.5]} 33. Qe3
{[%clk 0:02:12.2]} 33... Rd1+ {[%clk 0:01:40.7]} 34. Kg2 {[%clk 0:02:10.6]}
34... Ba5 {[%clk 0:01:31.4]} 35. Ra4 {[%clk 0:02:05.2]} 35... Qc7 {[%clk
0:01:06.2]} 36. Qb3+ {[%clk 0:01:55.3]} 36... Kf8 {[%clk 0:00:59.3]} 37. Qxd1
{[%clk 0:01:49.8]} 37... Qxc6+ {[%clk 0:00:58.2]} 38. Kg1 {[%clk 0:01:47.3]}
38... Bc7 {[%clk 0:00:49.7]} 39. Qc2 {[%clk 0:01:33.5]} 39... g6 {[%clk
0:00:47]} 40. Ra2 {[%clk 0:01:26.8]} 40... Kg7 {[%clk 0:00:45.2]} 41. Ra7 {[%clk
0:01:14.9]} 41... Kh6 {[%clk 0:00:39.5]} 42. Qd2+ {[%clk 0:01:10]} 42... g5
{[%clk 0:00:37.4]} 43. Qc2 {[%clk 0:00:54.5]} 43... e4 {[%clk 0:00:31.8]} 44.
Qc4 {[%clk 0:00:45.2]} 44... Bb6 {[%clk 0:00:20.8]} 45. Ra6 {[%clk 0:00:42]}
45... Qxc5 {[%clk 0:00:19.5]} 46. Qxc5 {[%clk 0:00:39.5]} 46... Bxc5 {[%clk
0:00:18.6]} 47. Rxf6+ {[%clk 0:00:39]} 47... Kg7 {[%clk 0:00:17.4]} 48. Rf5
{[%clk 0:00:36.7]} 48... Be7 {[%clk 0:00:13.4]} 49. Re5 {[%clk 0:00:35.1]} 49...
Bf6 {[%clk 0:00:09.9]} 50. Rxe4 {[%clk 0:00:34.2]} 50... Kg6 {[%clk 0:00:08.2]}
51. Kg2 {[%clk 0:00:32]} 51... Kf5 {[%clk 0:00:06.8]} 52. f3 {[%clk 0:00:30.8]}
52... h5 {[%clk 0:00:05]} 53. h3 {[%clk 0:00:29.6]} 1-0

[Event "Live Chess"]
[Site "Chess.com"]
[Date "2023.05.21"]
[Round "-"]
[White "jimwad"]
[Black "Olisingapore"]
[Result "0-1"]
[WhiteElo "1258"]
[BlackElo "1813"]
[TimeControl "300"]
[EndTime "17:21:26 PDT"]
[Termination "Olisingapore won by resignation"]

1. d4 {[%clk 0:04:57.9]} 1... Nf6 {[%clk 0:04:58.8]} 2. c4 {[%clk 0:04:56.7]}
2... e6 {[%clk 0:04:57.8]} 3. Nc3 {[%clk 0:04:55.8]} 3... Bb4 {[%clk 0:04:57.1]}
4. Bd2 {[%clk 0:04:54.4]} 4... c5 {[%clk 0:04:56.5]} 5. e3 {[%clk 0:04:52.4]}
5... Nc6 {[%clk 0:04:55.2]} 6. Nf3 {[%clk 0:04:50.9]} 6... cxd4 {[%clk
0:04:54.1]} 7. exd4 {[%clk 0:04:49.4]} 7... d5 {[%clk 0:04:53.2]} 8. c5 {[%clk
0:04:48]} 8... O-O {[%clk 0:04:52.8]} 9. a3 {[%clk 0:04:46.8]} 9... Bxc3 {[%clk
0:04:51.3]} 10. Bxc3 {[%clk 0:04:46]} 10... Ne4 {[%clk 0:04:49.2]} 11. Qc2
{[%clk 0:04:39.9]} 11... Nxc3 {[%clk 0:04:35.4]} 12. Qxc3 {[%clk 0:04:38.8]}
12... e5 {[%clk 0:04:04.1]} 13. Nxe5 {[%clk 0:04:34.8]} 13... Nxe5 {[%clk
0:04:01.1]} 14. dxe5 {[%clk 0:04:32.2]} 14... d4 {[%clk 0:03:59.3]} 15. Qg3
{[%clk 0:04:19.4]} 15... Bf5 {[%clk 0:03:54.6]} 16. Be2 {[%clk 0:04:16.5]} 16...
d3 {[%clk 0:03:49.4]} 17. Bd1 {[%clk 0:04:12.9]} 17... d2+ {[%clk 0:03:46.3]}
18. Kf1 {[%clk 0:04:11.5]} 18... Bd3+ {[%clk 0:03:38.6]} 19. Kg1 {[%clk
0:04:09.9]} 19... Qd4 {[%clk 0:03:33.9]} 20. b4 {[%clk 0:04:00.7]} 20... Qxa1
{[%clk 0:03:30.4]} 0-1